Workbook

Sheet Power Circuit Design
A1: UCG2882x DESIGN CALCULATOR TOOL
A2: TI Literature Number: Version : Original
A3: UCG2882x QR Flyback Controller
A4: Please enter design parameters into | C4: shaded | D4: cells
A5: Recommended Component Values are in GREEN
A6: Be sure to enable editing before attempting to use this design calculator This spreadsheet guides the user through the design process of QR flyback DC/DC converter using UCG2882x. User interaction is required in order to get best possible results. Enter the desired specifications where prompted, the highlighted cells are for user inputs; calculations for the design are based upon the inputs.
A10: WHERE APLICABLE, A RECOMMENDED VALUE IS GIVEN THAT WILL BE THE BEST CHOICE TO MEET THE GIVEN SPECIFICATION. IT IS IN THE BEST INTEREST OF THE USER TO USE A VALUE AS CLOSE AS POSSIBLE TO THE SUGGESTED VALUE. FOR ACCURATE RESULTS, THE USER MUST ENTER THE ACTUAL VALUE USED IN THE DESIGN IN THE APPROPRIATE CELL.
A13: DISCLAIMER This product is designed as an aid for customers of Texas Instruments. No warranties, either expresses or implied, with respect to this software or its fitness for any particular purpose, are claimed by Texas Instruments or the author. The software is licensed solely on an "as is" basis. The entire risk to its quality and performance is with the customer.
A17: Device you are using | C17: UCG28826-1 | E17: Refer datasheet for detailed information
A19: DESIGN SPECIFICATIONS
A21: Design Parameter | B21: Symbol | C21: Values | D21: Unit | E21: Comment
A22: OUTPUT PARAMETERS
A23: Minimum output voltage | B23: Vout_min | C23: 5 | D23: V | E23: Enter the desired minimum output voltage of the converter
A24: Maximum output voltage | B24: Vout_max | C24: 20 | D24: V | E24: Enter the desired maximum output voltage of the converter
A25: Output over voltage protection point | B25: Vovp | C25: 25 | D25: V | E25: Enter required output OVP point
A26: Maximum output power | B26: Pout_max | C26: 65 | D26: W | E26: Enter required maximum output power of converter
A27: Target full load efficiency | B27: η | C27: 0.92 | E27: Enter target efficiency at low line and maximum output power
A28: Maximum output voltage ripple | B28: Vout_ripple | C28: 200 | D28: mV | E28: Enter required maximum output voltage ripple
A30: INPUT PARAMETERS
A31: =INDEX(Data!K44:K50,MATCH(Device,Data!J44:J50),0) -> Minimum AC input voltage | B31: =INDEX(Data!L44:L50,MATCH(Device,Data!J44:J50),0) -> Vin_min | C31: 90 | D31: =INDEX(Data!M44:M50,MATCH(Device,Data!J44:J50),0) -> Vac | E31: =INDEX(Data!N44:N50,MATCH(Device,Data!J44:J50),0) -> Enter minimum ac input voltage
A32: =INDEX(Data!K51:K57,MATCH(Device,Data!J51:J57),0) -> Maximum AC input voltage | B32: =INDEX(Data!L51:L57,MATCH(Device,Data!J51:J57),0) -> Vin_max | C32: 264 | D32: =INDEX(Data!M51:M57,MATCH(Device,Data!J51:J57),0) -> Vac | E32: =INDEX(Data!N51:N57,MATCH(Device,Data!J51:J57),0) -> Enter maximum ac input voltage
A33: Minimum line frequency | B33: fline_min | C33: 47 | D33: Hz | E33: Enter minimum line frequency
A34: Maximum line frequency | B34: fline_max | C34: 66 | D34: Hz | E34: Enter maximum line frequency
A36: DESIGN CALCULATIONS
A38: INPUT BULK CAPACITOR
A39: Desired minimum bulk voltage at full load | B39: Vbulk_min_desired | C39: 75 | D39: V | E39: Enter minimum desired valley bulk voltage. Adjust this voltage to ensure the calculated bulk capacitance value matches with the selected one.
A40: Recommended input bulk capacitance | B40: Cbulk_recom | C40: =((2*(Pout_max/efficiency)*((1/(4*fline_min))+(1/(2*3.14*fline_min))*ASIN(Vbulk_min_desired/(SQRT(2)*Vin_min)))/((SQRT(2)*Vin_min)^2-Vbulk_min_desired^2))*10^6) -> 99.60185354 | D40: μF
A41: Actual input bulk capacitance | B41: Cbulk_actual | C41: 60 | D41: μF
A42: Minimum peak voltage rating of bulk capacitor | B42: Vcbulk_peak | C42: =SQRT(2)*Vin_max*1.15 -> 429.3552375 | D42: V | E42: Including 15% margin
A43: Minimum RMS current rating of bulk capacitor | B43: Icbulk_rms | C43: =Icbulk_rms -> 0.7882018828 | D43: A
A44: Minimum peak current rating of bulk capacitor | B44: Icbulk_peak | C44: =2*PI()*fline_min*Cbulk_recom*10^-6*SQRT(2)*Vin_min*COS(ASIN(Vbulk_min_desired/(SQRT(2)*Vin_min))) -> 1.822087231 | D44: A
A46: FLYBACK STAGE
A47: Maximum primary/secondary turns ratio | B47: Nps_max | C47: =IF( (560- (Vbulk_max))/(Vout_max)<0, 0,(560- (Vbulk_max))/(Vout_max) ) -> 9.332380977
A48: Recommended primary/secondary turns ratio | B48: Nps_recom | C48: =IF( (520- (Vbulk_max))/(Vout_max)<0, 0,(520- (Vbulk_max))/(Vout_max) ) -> 7.332380977
A49: Recommended TR value | B49: TR_recom | C49: =IFERROR(INDEX(Data!$G$5:$G$20, MATCH(TR_calc, Data!$G$5:$G$20, 0)), IFERROR(INDEX(Data!$G$5:$G$20, MATCH(TR_calc, Data!$G$5:$G$20, 1) + 1), IF(TR_calc>7.875, 7.875,6))) -> 7.375 | E49: =IF(TR_calc>7.875, "Clamping at the max TR value.", IF(TR_calc<6, "Clamping at the min TR value.", " ")) -> 
A50: Select TR value | B50: TR_actual | C50: 6 | E50: Adjust TR value to match Nps_calc with Nps_sel as close as possible
A51: Calculated primary/secondary turns ratio | B51: Nps_calc | C51: =25*TR/(Vovp) -> 6 | E51: Calculated based on TR and Vovp settings
A52: Selected primary/secondary turns ratio | B52: Nps_sel | C52: 6 | E52: =IF(Nps_sel>Nps_max, "Nps_sel exceeds Nps_max, continuing calculations on user's request", " ") -> 
A53: Actual OVP point | B53: Vovp_actual | C53: =IF(Device="UCG28826-4", 16*TR/(Nps_sel),25*TR/(Nps_sel)) -> 25 | D53: V | E53: =IF( C53<Vout_max, "Vovp is less than Vout_max", "It has 8% tolerance") -> It has 8% tolerance
A54: Maximum duty ratio | B54: Dmax | C54: =(Nps_sel*Vout_max)/(Vbulk_min+(Nps_sel*Vout_max)) -> 0.6153846154
A55: Primary side maximum peak current | B55: Ipk_max | C55: =2*Pout_max/(Vbulk_min*Dmax*efficiency) -> 3.061594203 | D55: A
A56: Recommended peak current setting | B56: Ipk_set_recom | C56: =Ipk_recom -> 3.1 | D56: A
A57: Peak current setting of the device | B57: Ipk_set | C57: 3.1 | D57: A | E57: =IF(Ipk_set<Ipk_max, "Ipk_set cannot be less than Ipk_max", "Select Ipk_set higher than Ipk_max (refer datasheet to select appropriate value)") -> Select Ipk_set higher than Ipk_max (refer datasheet to select appropriate value)
A58: Clamp switching frequency of the device | B58: Fclamp | C58: 140 | D58: kHz | E58: Select maximum switching frequency
A59: Desired minimum switching frequency at low line and full load | B59: Fsw_desired_LLFL | C59: 75 | D59: kHz | E59: Enter the desired nominal switching frequency
A60: Recommended magnetizing inductance | B60: Lm_recom | C60: =_xlfn.IFS( Lm>Lm_max_datasheet, Lm_max_datasheet, Lm <Lm_min_datasheet, Lm_min_datasheet, Lm <Lm_max_datasheet, Lm) -> 201.0013655 | D60: μH | E60: Min. inductance is clamped at 190 µH for UCG28824 and 130 µH for UCG28826/8. Max. inductance is clamped at 550 µH for UCG28824 and 400 µH for UCG28826/8.
A61: Minimum magnetizing inductance | B61: Lm_min | C61: =_xlfn.IFS( Lm*Fsw_desired_LLFL/(Fclamp)< Lm_min_datasheet,Lm_min_datasheet, Lm*Fsw_desired_LLFL/(Fclamp)>Lm_max_datasheet, Lm_max_datasheet, Lm*Fsw_desired_LLFL/(Fclamp)>Lm_min_datasheet, Lm*Fsw_desired_LLFL/(Fclamp)) -> 130 | D61: μH
A62: Maximum magnetizing inductance | B62: Lm_max | C62: =_xlfn.IFS( Lm*Fsw_desired_LLFL/30>Lm_max_datasheet, Lm_max_datasheet, Lm*Fsw_desired_LLFL/30 < Lm_min_datasheet, Lm_min_datasheet, Lm*Fsw_desired_LLFL/30<Lm_max_datasheet, Lm*Fsw_desired_LLFL/30) -> 400 | D62: μH
A63: Actual magnetizing inductance | B63: Lm_actual | C63: 200 | D63: μH | E63: Enter the actual value of the magnetizing inductance used
A64: Actual minimum switching frequency at low line and full load | B64: Fsw_actual_LLFL | C64: =(Vbulk_min*Dmax/(Ipk_max*Lm_actual))*10^3 -> 75.37551206 | D64: kHz
A66: FLYBACK TRANSFORMER
A67: Magnetizing inductance | B67: Lm_actual | C67: =Lm_actual -> 200 | D67: μH
A68: Primary side leakage inductance | B68: Llk | C68: 3 | D68: μH | E68: Enter the expected leakage inducance (should be below 3% of Lm_actual)
A69: Select transformer core area | B69: Acore | C69: 64 | D69: mm2 | E69: Enter the effective cross-sectional area of the core
A70: Desired maximum operating core flux density | B70: Bmax | C70: 0.32 | D70: T | E70: Enter a value lesser than the saturation flux density of the core
A71: Number of turns of the primary winding | B71: Np | C71: =(Lm_actual*Ipk_set/(Bmax*Acore)) -> 30.2734375
A72: Number of turns of the secondary winding | B72: Ns | C72: =Np/Nps_sel -> 5.045572917
A73: Primary winding peak voltage stress | B73: Vpri | C73: =MAX(Vbulk_max,Vout_max*Np/Ns)*1.15 -> 429.3552375 | D73: V | E73: Including 15% margin
A74: Primary winding peak current stress | B74: Ipri_pk | C74: =Ipk_max -> 3.061594203 | D74: A
A75: Primary winding RMS current stress | B75: Ipri_rms | C75: =Ipri_pk*SQRT(Dmax/3) -> 1.386629122 | D75: A
A76: Secondary winding peak voltage stress | B76: Vsec | C76: =MAX(Vout_max,Vbulk_max/Nps_sel)*1.15 -> 71.55920626 | D76: V | E76: Including 15% margin
A77: Secondary winding peak current stress | B77: Isec_pk | C77: =Ipk_max*Nps_sel -> 18.36956522 | D77: A
A78: Secondary winding RMS current stress | B78: Isec_rms | C78: =Isec_pk*SQRT((1-Dmax)/3) -> 6.577359441 | D78: A
A80: SNUBBER CIRCUIT (RCD)
A81: Worst case overshoot voltage across primary side switch | B81: Vos | C81: 275 | D81: V
A82: Voltage across snubber capacitor | B82: Vsn | C82: =(Vos+Nps_sel*Vout_max) -> 395 | D82: V
A83: Worst case ripple in snubber capacitor | B83: ΔVsn | C83: 3 | D83: V
A84: Worst case power dissipation in the snubber circuit | B84: Psn | C84: =0.5*Llk*10^-6*(Ipk_max)^2*Fsw_actual_LLFL*10^3*Vsn/(Vsn-(Nps_sel*Vout_max))*0.2 -> 0.3044466403 | D84: W
A85: Recommended snubber resistance | B85: Rsn_recom | C85: =(Vsn^2/Psn)*10^-3 -> 512.4871795 | D85: kΩ
A86: Recommended snubber capacitance | B86: Csn_recom | C86: =Psn/(Fsw_actual_LLFL*10^3*Vsn_ripple*Vsn)*10^9 -> 3.408494205 | D86: nF
A88: FLYBACK OUTPUT RECTIFIER DIODE/SYNCHRONOUS RECTIFIER
A89: Peak voltage stress of SR FET/diode | B89: Vds_peak | C89: =((Vbulk_max)/Nps_sel+Vout_max)*1.15 -> 94.55920626 | D89: V | E89: Including 15% margin
A90: Peak current stress of SR FET/diode | B90: Id_peak | C90: =Isec_pk -> 18.36956522 | D90: A
A91: RMS current stress of SR FET/diode | B91: Id_rms | C91: =Isec_rms -> 6.577359441 | D91: A
A92: Average current stress of SR FET/diode | B92: Id_avg | C92: =Pout_max/Vout_max -> 3.25 | D92: A
A94: OUTPUT CAPCITOR SELECTION
A95: Maximum output voltage ripple | B95: Vout_ripple | C95: =Vout_ripple -> 200 | D95: mV
A96: Transient overshoot and undershoot voltage | B96: Vovershoot | C96: 0.5 | D96: V | E96: Enter the desired overshoot and undershoot value of Vout due to dynamic change in load
A97: Recommended crossover frequency | B97: fc_recom | C97: =((Fsw_actual_LLFL*10^3)/20) -> 3768.775603 | D97: Hz
A98: Used crossover frequency | B98: fc_used | C98: 3000 | D98: Hz | E98: Enter the targeted value of crossover frequency.
A99: Approx response time to regulate output voltage | B99: T_response | C99: =((0.33/(fc))+10^-3/Fsw_actual_LLFL)*10^6 -> 123.2669082 | D99: us
A100: Recommended output capacitor | B100: Cout_recom | C100: =ROUND(MAX(Cout_tran,Cout_ripple),0) -> 761 | D100: uF
A101: Used output capacitor | B101: Cout_actual | C101: 820 | D101: uF | E101: Enter the actual value of output capacitors used
A102: Peak voltage stress of output capacitor | B102: Vcout_peak | C102: =Vout_max*1.15 -> 23 | D102: V | E102: Including 15% margin
A103: Peak current stress of output capacitor | B103: Icout_peak | C103: =MAX(Pout_max/Vout_max, Ipk_max*Nps_sel-Pout_max/Vout_max) -> 15.11956522 | D103: A | E103: Use a combination of capacitors that will meet this Peak current stress
A104: RMS current stress of output capacitor | B104: Icout_rms | C104: =SQRT(Isec_rms^2-(Pout_max/Vout_max)^2) -> 5.718317691 | D104: A | E104: Use a combination of capacitors that will meet this ripple current stress
A105: Maximum ESR of output capacitor | B105: Resr_max. | C105: =(Vout_ripple/(Ipk_max*Nps_sel)) -> 10.88757396 | D105: mΩ
A106: ESR used | B106: Resr_actual | C106: 5 | D106: mΩ | E106: Enter the actual value of ESR of output capacitor

Sheet Compensator Circuit Design
A1: OPTOCOUPLER FEEDBACK(Only for fixed Vout)
A2: Note: This is theoretical calculation based on ideal components. Fine tuning may be needed in the actual system
A24: Forward Voltage of an Optocoupler | B24: Vf(opto) | C24: 1 | D24: V | E24: Enter the forward voltage drop of an optocoupler used
A25: Saturation Voltage of an Optocoupler | B25: Vce(sat) | C25: 100 | D25: mV | E25: Enter the collector-emitter saturation voltage of an optocoupler used
A26: Pull-up Resistor Value | B26: Rpullup | C26: 60 | D26: kΩ | E26: Fixed inside the device
A27: Minimum Value of Current Transfer Ratio of an Optocoupler | B27: CTR(min) | C27: 0.4 | E27: Enter the minimum CTR value based upon optocoupler characterisation done
A28: Select Shunt Voltage Regulator | C28: TLV431 | E28: Select the desired shunt regulator
A29: Reference Voltage of Selected Shunt Regulator | B29: Vref | C29: =IF(C28="TLV431",1.25,2.5) -> 1.25 | D29: V
A30: Maximum Value of LED Resistor(Refer Figure(1)) | B30: Rled(max) | C30: =((Vout_max-C24-C29)*C26*C27)/((3.6-(C25*10^-3))+(C31*10^-3*C26*10^3*C27)) -> 27.48387097 | D30: kΩ
A31: Minimum Required Bias Current for Shunt Regulator | B31: Ibias | C31: 0.5 | D31: mA | E31: Enter the bias current of used shunt regulator (TLV431/TL431 or other)
A32: Bias Resistor Value to Provide Bias Current to Shunt Regulator | B32: Rbias | C32: =C24/C31 -> 2 | D32: kΩ
A34: Plant Transfer Function
A35: Pole Due to Load Resistor and Output Capacitor | B35: Fp(plant) | C35: =1/(2*PI()*Vout_max*Vout_max/Pout_max*Cout_actual*10^-6) -> 31.53985153 | D35: Hz
A36: Zero Due to Resr and Output Capacitor | B36: Fz(plant) | C36: =(1/(2*PI()*Resr_actual*10^-3*Cout_actual*10^-6))*10^-3 -> 38.8182788 | D36: kHz
A37: Targeted Phase Margin | B37: PM | C37: 70 | D37: degree
A38: Gain at Desired Cross Over Frequency (in dB) of Plant Transfer Function | B38: H(fc(used)) | C38: -5 | E38: Enter measured controlled to output gain at desired crossover frequency of plant transfer function
A39: Phase at Desired Cross Over Frequency (in degree) of Plant Transfer Function | B39: arg[H(fc(used))] | C39: -87 | D39: degree | E39: Enter measured phase at desired crossover frequency of plant transfer function
A40: LED Resistor(Refer Figure (1)) | B40: Rled | C40: 5 | D40: kΩ | E40: Enter actual value of Rled used; should be less than Rled(max)
A42: Compensation Transfer function
A43: Mid-band Gain at Desired Cross Over Frequency (in dB) of Compensator Transfer Function | B43: |G(fc(used))| | C43: =ABS(C38) -> 5
A44: Absolute Value of Mid-band Gain at Desired Cross Over Frequency of Compensator Transfer Function | B44: |G(fc)| | C44: =10^(C43/20) -> 1.77827941
A45: Required Boost at fc(used) | B45: Boost | C45: =C37-C39-90 -> 67 | D45: degree
A46: First Pole /Low-Frequency Pole of an Optocoupler | B46: fopto | C46: 3 | D46: kHz | E46: Enter the low frequency pole of an optocoupler based upon optocoupler characterisation done
A47: Optocoupler Capacitance | B47: Copto | C47: =(1/(2*PI()*C26*10^3*C46*10^3))*10^12 -> 884.1941283 | D47: pF
A48: Feedback Node Capacitance | B48: Cfb | C48: 330 | D48: pF | E48: Enter the FB node capacitor value (minimum 100pF capacitor is required to cancel noise coupling between FB node and GND)
A49: Total Capacitor at Feedback Node | B49: Cp | C49: =C47+C48 -> 1214.194128 | D49: pF
A50: First Pole of Compensator Due to R3 and C3 | B50: fp1 | C50: 14.74547109 | D50: kHz
A51: First Zero of Compensator Due to R2 and C1 | B51: fz1 | C51: 610.3568983 | D51: Hz
A52: Second Pole of Compensator Due to Rpullup and Cp | B52: fp2 | C52: =(1/(2*PI()*C26*10^3*C49*10^-12))*10^-3 -> 2.184644385 | D52: kHz
A53: Second Zero of Compensator Due to (R1+R3) and C3 | B53: fz2 | C53: =C52 -> 2.184644385 | D53: kHz
A54: Upper Resistor(R1) Value of Resistor Divider to Make Vref | B54: R1 | C54: 100 | D54: kΩ | E54: Enter the desired value of upper resistor R1 of the resistor divider(refer figure(1))
A55: Recommended Lower Resistor(Rlower) Value of Resistor Divider to Make Vref | B55: Rlower(recom) | C55: =C54*C29/(Vout_max-C29) -> 6.666666667 | D55: kΩ
A56: Actual Lower Resistor(Rlower) Value of Resistor Divider to Make Vref | B56: Rlower | C56: 14.3 | D56: kΩ | E56: Enter the actual value of lower resistor(Rlower) used in resistor divider circuit(refer figure(1))
A57: Recommended Value of Resistor R2 | B57: R2(recom) | C57: =(C54*C30*C44)/(C27*C26) -> 203.6416744 | D57: kΩ
A58: Actual Value of Resistor R2 | B58: R2 | C58: 49.9 | D58: kΩ | E58: Enter the actual value of resistor R2 used (refer figure (1)); select approx. same value as the recommended value
A59: Recommended Value of Capacitor C1 | B59: C1(recom) | C59: =(1/(2*PI()*C51*C58*10^3))*10^9 -> 5.225594773 | D59: nF
A60: Actual Value of Capacitor C1 | B60: C1 | C60: 22 | D60: nF | E60: Enter the actual value of capacitor C1 used (refer figure (1)); select higher value than the recommended value
A61: Pole at Origin Due to R1 and C1 | B61: fp0 | C61: =(1/(2*PI()*C60*10^-9*C54*10^3)) -> 72.34315595 | D61: Hz
A62: Recommended Value of Resistor R3 | B62: R3(recom) | C62: =C54*(C53/(C50-C53)) -> 17.3925207 | D62: kΩ
A63: Actual Value of Resistor R3 | B63: R3 | C63: 2 | D63: kΩ | E63: Enter the actual value of resistor R3 used (refer figure (1)); select lower value than the recommended value
A64: Recommended Value of Capacitor C3 | B64: C3(recom) | C64: =(1/(2*PI()*C52*10^3*(C54+C63)*10^3))*10^12 -> 714.2318402 | D64: pF
A65: Actual Value of Capacitor C3 | B65: C3 | C65: 1000 | D65: pF | E65: Enter the actual value of capacitor C3 used (refer figure (1))
A67: Final values of poles and zero of Compensator
A68: Pole at Origin Due to R1 and C1 | B68: fp0 | C68: =C61 -> 72.34315595 | D68: Hz | E68: Warning! If cells become red, please readjust compensator values entered above to have optimised values.
A69: First Zero of Compensator Due to R2 and C1 | B69: fz1 | C69: =(1/(2*PI()*C58*10^3*C60*10^-9)) -> 144.9762644 | D69: Hz
A70: Second Zero of Compensator Due to (R1+R3) and C3 | B70: fz2 | C70: =(1/(2*PI()*(C54+C63)*10^3*C65*10^-12))*10^-3 -> 1.560342579 | D70: kHz
A71: Second Pole of compensator Due to Rpullup and Cp | B71: fp2 | C71: =C52 -> 2.184644385 | D71: kHz
A72: First Pole of Compensator Due to R3 and C3 | B72: fp1 | C72: =(1/(2*PI()*C63*10^3*C65*10^-12))*10^-3 -> 79.57747155 | D72: kHz

Sheet Device Pin Programming
A1: UCG2882x Device Pin Programming Sheet
A3: Controller Pin Discription
A5: TR pin programming resistor setting
A6: Selected TR value | B6: TR | C6: =TR -> 6
A7: TR pin resistor value | B7: Rtr | C7: =INDEX(Data!F5:F20,MATCH(C6,Data!G5:G20,0)) -> 5.23 | D7: kΩ
A9: IPK pin programming resistor setting
A10: Peak current setting of the device | B10: Ipk_set | C10: =Ipk_set -> 3.1 | D10: A
A11: Division ratio [Imax/Imin] | B11: Imax/Imin | C11: 3 | E11: Select desired Imax/Imin value; refer datasheet
A12: EMI dithering depth (%) | B12: EMI | C12: 12.5 | D12: % | E12: Select desired EMI dethering settings; refer datasheet
A13: IPK pin resistor value | B13: Ripk | C13: =INDEX(Data!I5:I16,MATCH(1,(Data!J5:J16=C10)*(Data!K5:K16=C11)*(Data!L5:L16=C12),0)) -> 11.5 | D13: kΩ
A15: FCL pin programming resistor setting
A16: Frequency clamp | B16: Fclamp | C16: =Fclamp -> 140 | D16: kHz
A17: Fault response | C17: EXTOTP Fault and OVP Latched, rest auto retry | E17: Select desired fault setting; refer datasheet
A18: FCL pin resistor value | B18: Rfcl | C18: =INDEX(Data!N5:N16,MATCH(1,(Data!O5:O16=C16)*(Data!P5:P16=C17),0)) -> 28.7 | D18: kΩ
A20: CDX pin programming resistor setting
A21: Select CCM setting | B21: CCM | C21: Enabled | E21: Select desired CCM setting; refer datasheet
A22: Select SW node turn-on slew rate | C22: 7 | D22: V/ns | E22: Select desired SW Node Turn-On Slew Rate; refer datasheet
A23: Select X-cap discharge setting | C23: Enabled | E23: Select desired X-cap discharge setting; refer datasheet
A24: CDX pin resistor value | B24: Rcdx | C24: =INDEX(Data!R5:R16,MATCH(1,(Data!S5:S16=C21)*(Data!T5:T16=C22)*(Data!U5:U16=C23),0)) -> 22.6 | D24: kΩ

Sheet Schematics
A31: Please go to "Power Circuit Design" and "Controller Circuit Design" sheets for calculations!
B34: UCG28824? | C34: =IF(Device="UCG28824-1","1","0") -> 0
B35: Shape Visible? | C35: =IF(Device="UCG28828-1", "1",IF(Device="UCG28828-2","1", "0")) -> 0
B36: Rlower | C36: ='Compensator Circuit Design '!C56&"kΩ" -> 14.3kΩ
B37: Cbulk/3 | C37: =IF(Device="UCG28824-1",Cbulk_recom/2&"µF",Cbulk_recom/3&"µF") -> 20µF
B38: 2Cbulk/3 | C38: =IF(Device="UCG28824-1",Cbulk_recom/2&"µF",2*Cbulk_recom/3&"µF") -> 40µF
B39: Csn | C39: =ROUND(Csn_recom,2)& "nF" -> 3.41nF
B40: Rsn | C40: =ROUND(Rsn_recom,2)& "kΩ" -> 512.49kΩ
B41: Nps | C41: =Nps_sel&":1" -> 6:1
B42: Cout | C42: =Cout_actual&"µF" -> 820µF
B43: Rcdx | C43: =Rcdx&"kΩ" -> 22.6kΩ
B44: Rfcl | C44: =Rfcl&"kΩ" -> 28.7kΩ
B45: Ripk | C45: =Ripk&"kΩ" -> 11.5kΩ
B46: Rtr | C46: =Rtr&"kΩ" -> 5.23kΩ
B47: Cfb | C47: ='Compensator Circuit Design '!C48 &"pF" -> 330pF
B48: Rled | C48: =ROUND('Compensator Circuit Design '!C40,2)&"kΩ" -> 5kΩ
B49: Rbias | C49: ='Compensator Circuit Design '!C32&"kΩ" -> 2kΩ
B50: C1 | C50: ='Compensator Circuit Design '!C60&"nF" -> 22nF
B51: R2 | C51: ='Compensator Circuit Design '!C58&"kΩ" -> 49.9kΩ
B52: R1 | C52: ='Compensator Circuit Design '!C54&"kΩ" -> 100kΩ
B53: R3 | C53: ='Compensator Circuit Design '!C63&"kΩ" -> 2kΩ
B54: C3 | C54: ='Compensator Circuit Design '!C65&"pF" -> 1000pF

Sheet Data (hidden)
B3: Shunt regulators | F3: TR prog. resistor values | I3: IPK programming resistor values for UCG2882x | N3: FCL pin programming resistor values | R3: CDX resistor programming setting
B4: Voltage refrence | F4: TR pin resistor (kΩ) | G4: Turns ratio | I4: IPK pin resistor (kΩ) | J4: Maximum peak current (A) | K4: Ipk_max/Ipk_min | L4: EMI dithering depth(%) | N4: FCL pin resistor value (kΩ) | O4: Frequency clamp | P4: Fault response | R4: CDX pin resistor (kΩ) | S4: CCM | T4: SW node turn-on slew rate (V/ns) | U4: X-cap discharge
B5: TL431 | C5: 2.5 | F5: 5.23 | G5: 6 | I5: 5.23 | J5: =INDEX(J26:P26,MATCH(Device,Data!J25:P25,0)) -> 2.8 | K5: 4 | L5: 12.5 | N5: 5.23 | O5: 140 | P5: Latched | R5: 5.23 | S5: Disabled | T5: 10 | U5: Enabled
B6: TLV431 | C6: 1.25 | F6: 6.34 | G6: 6.125 | I6: 6.34 | J6: =INDEX(J27:P27,MATCH(Device,Data!J25:P25,0)) -> 3.1 | K6: 4 | L6: 12.5 | N6: 6.34 | O6: 100 | P6: Latched | R6: 6.34 | S6: Disabled | T6: 7 | U6: Enabled
F7: 7.68 | G7: 6.25 | I7: 7.68 | J7: =INDEX(J28:P28,MATCH(Device,Data!J25:P25,0)) -> 3.5 | K7: 4 | L7: 12.5 | N7: 7.68 | O7: 250 | P7: Latched | R7: 7.68 | S7: Disabled | T7: 5 | U7: Enabled
F8: 9.31 | G8: 6.375 | I8: 9.31 | J8: =INDEX(J26:P26,MATCH(Device,Data!J25:P25,0)) -> 2.8 | K8: 3 | L8: 12.5 | N8: 9.31 | O8: 500 | P8: Latched | R8: 9.31 | S8: Disabled | T8: 10 | U8: Disabled
F9: 11.3 | G9: 6.5 | I9: 11.5 | J9: =INDEX(J27:P27,MATCH(Device,Data!J25:P25,0)) -> 3.1 | K9: 3 | L9: 12.5 | N9: 11.5 | O9: 140 | P9: All auto retry | R9: 11.5 | S9: Disabled | T9: 7 | U9: Disabled
F10: 13.7 | G10: 6.625 | I10: 14.3 | J10: =INDEX(J28:P28,MATCH(Device,Data!J25:P25,0)) -> 3.5 | K10: 3 | L10: 12.5 | N10: 28.7 | O10: 140 | P10: EXTOTP Fault and OVP Latched, rest auto retry | R10: 14.3 | S10: Disabled | T10: 5 | U10: Disabled
B11: Device variants | F11: 16.9 | G11: 6.75 | I11: 17.8 | J11: =INDEX(J26:P26,MATCH(Device,Data!J25:P25,0)) -> 2.8 | K11: 4 | L11: 6.25 | N11: 17.8 | O11: 250 | P11: All auto retry | R11: 17.8 | S11: Enabled | T11: 10 | U11: Enabled
B12: UCG28824-1 | F12: 20.5 | G12: 6.875 | I12: 22.6 | J12: =INDEX(J27:P27,MATCH(Device,Data!J25:P25,0)) -> 3.1 | K12: 4 | L12: 6.25 | N12: 22.6 | O12: 500 | P12: All auto retry | R12: 22.6 | S12: Enabled | T12: 7 | U12: Enabled
B13: UCG28826-1 | F13: 25.5 | G13: 7 | I13: 28.7 | J13: =INDEX(J28:P28,MATCH(Device,Data!J25:P25,0)) -> 3.5 | K13: 4 | L13: 6.25 | N13: 14.3 | O13: 100 | P13: All auto retry | R13: 28.7 | S13: Enabled | T13: 5 | U13: Enabled
B14: UCG28826-3 | F14: 31.6 | G14: 7.125 | I14: 36.5 | J14: =INDEX(J26:P26,MATCH(Device,Data!J25:P25,0)) -> 2.8 | K14: 3 | L14: 6.25 | N14: 36.5 | O14: 100 | P14: EXTOTP Fault and OVP Latched, rest auto retry | R14: 36.5 | S14: Enabled | T14: 10 | U14: Disabled
B15: UCG28826-4 | F15: 39.2 | G15: 7.25 | I15: 51.1 | J15: =INDEX(J27:P27,MATCH(Device,Data!J25:P25,0)) -> 3.1 | K15: 3 | L15: 6.25 | N15: 51.1 | O15: 250 | P15: EXTOTP Fault and OVP Latched, rest auto retry | R15: 51.1 | S15: Enabled | T15: 7 | U15: Disabled
B16: UCG28826-5 | F16: 51.1 | G16: 7.375 | I16: 75 | J16: =INDEX(J28:P28,MATCH(Device,Data!J25:P25,0)) -> 3.5 | K16: 3 | L16: 6.25 | N16: 75 | O16: 500 | P16: EXTOTP Fault and OVP Latched, rest auto retry | R16: 75 | S16: Enabled | T16: 5 | U16: Disabled
B17: UCG28828-1 | F17: 66.5 | G17: 7.5 | I17: Note: Maximum peak current values changes with the device selected
B18: UCG28828-2 | F18: 84.5 | G18: 7.625
F19: 113 | G19: 7.75
F20: 174 | G20: 7.875
F24: Important design info | J24: UCG2882x peak current settings | R24: UCG2882x min and max inductor setting
F25: Parameters | G25: Values | H25: Units | J25: UCG28824-1 | K25: UCG28826-1 | L25: UCG28826-3 | M25: UCG28826-4 | N25: UCG28826-5 | O25: UCG28828-1 | P25: UCG28828-2 | R25: UCG28824-1 | S25: UCG28826-1 | T25: UCG28826-3 | U25: UCG28826-4 | V25: UCG28826-5 | W25: UCG28828-1 | X25: UCG28828-2
F26: Tline_max | G26: =1000/fline_min -> 21.27659574 | H26: ms | J26: 1.9 | K26: 2.8 | L26: 2.8 | M26: 2.8 | N26: 2.8 | O26: 2.8 | P26: 2.8 | R26: 190 | S26: 130 | T26: 130 | U26: 130 | V26: 130 | W26: 130 | X26: 130
F27: Vbulk_min | G27: =INDEX(L58:L64,MATCH(Device,Data!J58:J64,0)) -> 75 | H27: V | J27: 2.1 | K27: 3.1 | L27: 3.1 | M27: 3.1 | N27: 3.1 | O27: 3.1 | P27: 3.1 | R27: 550 | S27: 400 | T27: 400 | U27: 400 | V27: 400 | W27: 400 | X27: 400
F28: Vbulk_max | G28: =INDEX(L65:L71,MATCH(Device,Data!J65:J71,0)) -> 373.3523805 | H28: V | J28: 2.4 | K28: 3.5 | L28: 3.5 | M28: 3.5 | N28: 3.5 | O28: 3.5 | P28: 3.5
F29: Dmax | G29: =(Nps_sel*Vout_max)/(Vbulk_min+(Nps_sel*Vout_max)) -> 0.6153846154
F30: Fsw_actual_LLFL | G30: =(Vbulk_min*(Nps_sel*Vout_max)/(Vbulk_min+(Nps_sel*Vout_max))/(Ipk_max*Lm_actual*10^3))*10^6 -> 75.37551206 | H30: kHz
F31: Cout_transient | G31: =((Pout_max/Vout_max*(((0.33/(fc))+10^-3/Fclamp)*10^6)*10^-6)/Over_Under_Shoot)*10^6 -> 761.4285714 | H31: uF
F32: Cout_ripple | G32: =((Pout_max/Vout_max*Dmax)/(Vout_ripple*10^-3*Fsw_actual_LLFL*10^3))*10^6 -> 132.6690821 | H32: uF
F33: Rload | G33: =Vout_max^2/Pout_max -> 6.153846154 | H33: Ohms
F34: Lm | G34: =(Vbulk_min*Dmax/(Ipk_max*Fsw_desired_LLFL*10^3))*10^6 -> 201.0013655 | H34: µH
F35: Lm_min_datasheet | G35: =IF( Device = R25, R26, V26) -> 130 | H35: µH
F36: Lm_max_datasheet | G36: =IF( Device =R25, R27, V27) -> 400 | H36: µH
F37: TR_calc | G37: =IF(Device="UCG28826-4", Nps_recom*(Vovp)/16, Nps_recom*(Vovp)/25) -> 7.332380977
F38: Ipk_recom_calc | G38: =Ipk_max -> 3.061594203 | H38: A
F39: Ipk_recom_calc1 | G39: =_xlfn.XLOOKUP(G38, OFFSET(Data!$J$26:$J$28, 0, MATCH(Device, Data!$J$25:$P$25, 0)-1), OFFSET(Data!$J$26:$J$28, 0, MATCH(Device, Data!$J$25:$P$25, 0)-1), "no", 1) -> 3.1 | H39: A
F40: Ipk_recom | G40: =IF(Ipk_error="no", 2.4, Ipk_error) -> 3.1 | H40: A
F42: Cbulk parameter calculations | J42: Change in parameters for UCG2882x
F43: Parameters | G43: Values | H43: Units | J43: Device | K43: Parameters | L43: Symbols/values | M43: Units | N43: Comments
F44: Tdischarge | G44: =Tline/4+(Tline/(2*PI()))*ASIN((Vbulk_min_desired)/(SQRT(2)*Vin_min)) -> 7.452967182 | H44: ms | J44: UCG28824-1 | K44: Minimum AC input voltage | L44: Vin_min | M44: Vac | N44: Enter minimum ac input voltage
F45: Tcharge | G45: =Tline/2-G44 -> 3.185330691 | H45: ms | J45: UCG28826-1 | K45: Minimum AC input voltage | L45: Vin_min | M45: Vac | N45: Enter minimum ac input voltage
F46: Icbulk_pk | G46: =2*PI()*fline_min*Cbulk_recom*10^-6*SQRT(2)*Vin_min*COS(ASIN(Vbulk_min_desired/(SQRT(2)*Vin_min))) -> 1.822087231 | H46: A | J46: UCG28826-3 | K46: Minimum AC input voltage | L46: Vin_min | M46: Vac | N46: Enter minimum ac input voltage
F47: Iin_min | G47: =Pout_max/(efficiency*SQRT(2)*Vin_max) -> 0.1892372397 | H47: A | J47: UCG28826-4 | K47: Minimum AC input voltage | L47: Vin_min | M47: Vac | N47: Enter minimum ac input voltage
F48: Iin_max | G48: =Pout_max/(efficiency*Vbulk_min_desired) -> 0.9420289855 | H48: A | J48: UCG28826-5 | K48: Minimum AC input voltage | L48: Vin_min | M48: Vac | N48: Enter minimum ac input voltage
F49: Idbr_pk | G49: =G48+G46 -> 2.764116217 | H49: A | J49: UCG28828-1 | K49: Minimum output voltage of the PFC | L49: Vpfc_min | M49: V | N49: Enter the minimum output voltage of PFC
F50: Sdiode | G50: =(Idbr_pk-Iin_min)/tcharge -> 0.8083553097 | J50: UCG28828-2 | K50: Minimum output voltage of the PFC | L50: Vpfc_min | M50: V | N50: Enter the minimum output voltage of PFC
F51: Tdiode_conduction | G51: =(Idbr_pk/Sdiode) -> 3.419432252 | H51: ms | J51: UCG28824-1 | K51: Maximum AC input voltage | L51: Vin_max | M51: Vac | N51: Enter maximum ac input voltage
F52: Iin_avg | G52: =Idbr_pk*Tdiode_cond*10^-3*fline_min -> 0.4442302825 | H52: A | J52: UCG28826-1 | K52: Maximum AC input voltage | L52: Vin_max | M52: Vac | N52: Enter maximum ac input voltage
F53: Icbulk_rms | G53: =Iin_avg*SQRT((2/(3*fline_min*Tdiode_cond*10^-3))-1) -> 0.7882018828 | H53: A | J53: UCG28826-3 | K53: Maximum AC input voltage | L53: Vin_max | M53: Vac | N53: Enter maximum ac input voltage
F54: Cbulk/3 | G54: =Cbulk_recom/3 -> 20 | H54: uF | J54: UCG2882-4 | K54: Maximum AC input voltage | L54: Vin_max | M54: Vac | N54: Enter maximum ac input voltage
F55: 2*Cbulk/3 | G55: =2*Cbulk_recom/3 -> 40 | H55: uF | J55: UCG2882-5 | K55: Maximum AC input voltage | L55: Vin_max | M55: Vac | N55: Enter maximum ac input voltage
F56: Note: Valid only for UCG28824/6 | J56: UCG28828-1 | K56: Maximum output voltage of the PFC | L56: Vpfc_max | M56: V | N56: Enter the maximum output voltage of PFC
J57: UCG28828-2 | K57: Maximum output voltage of the PFC | L57: Vpfc_max | M57: V | N57: Enter the maximum output voltage of PFC
J58: UCG28824-1 | K58: Vbulk_min | L58: =Vbulk_min_desired -> 75 | M58: V
J59: UCG28826-1 | L59: =Vbulk_min_desired -> 75
J60: UCG28826-3 | L60: =Vbulk_min_desired -> 75
J61: UCG28826-4 | L61: =Vbulk_min_desired -> 75
J62: UCG28826-5 | L62: =Vbulk_min_desired -> 75
J63: UCG28828-1 | L63: =Vin_min -> 90
J64: UCG28828-2 | L64: =Vin_min -> 90
J65: UCG28824-1 | K65: Vbulk_max | L65: =SQRT(2)*Vin_max -> 373.3523805 | M65: V
J66: UCG28826-1 | L66: =SQRT(2)*Vin_max -> 373.3523805
J67: UCG28826-3 | L67: =SQRT(2)*Vin_max -> 373.3523805
J68: UCG28826-4 | L68: =SQRT(2)*Vin_max -> 373.3523805
J69: UCG28826-5 | L69: =SQRT(2)*Vin_max -> 373.3523805
J70: UCG28828-1 | L70: =Vin_max -> 264
J71: UCG28828-2 | L71: =Vin_max -> 264

Sheet Plant Transfer Function (hidden)
B2: Interpolation Data for UCG28824 | G2: Interpolation Data for UCG28826/28
B3: Fsw (Hz) | C3: Log(Fsw) | D3: Gain (dB) | E3: Phase (degrees) | G3: Fsw (Hz) | H3: Log(Fsw) | I3: Gain (dB) | J3: Phase (degrees)
B4: 100 | C4: =LOG10(B4) -> 2 | D4: 32 | E4: 110 | G4: 100 | H4: =LOG10(G4) -> 2 | I4: 32 | J4: 110
B5: 200 | C5: =LOG10(B5) -> 2.301029996 | D5: 25 | E5: 80 | G5: 200 | H5: =LOG10(G5) -> 2.301029996 | I5: 25 | J5: 80
B6: =B5+100 -> 300 | C6: 2.477121255 | D6: 21 | E6: 67 | G6: =G5+100 -> 300 | H6: 2.477121255 | I6: 21 | J6: 67
B7: =B6+100 -> 400 | C7: 2.602059991 | D7: 17 | E7: 63 | G7: =G6+100 -> 400 | H7: 2.602059991 | I7: 17 | J7: 63 | M7: Estimated Values
B8: 500 | C8: 2.698970004 | D8: 14 | E8: 60 | G8: 500 | H8: 2.698970004 | I8: 14 | J8: 60 | M8: Fsw | N8: 550
B9: 600 | C9: 2.77815125 | D9: 12 | E9: 56 | G9: 600 | H9: 2.77815125 | I9: 12 | J9: 56 | M9: Gain | N9: =-3.799*LOG10(N8)^2-8.0542*LOG10(N8)+63.643 -> 13.04264727
B10: 700 | C10: 2.84509804 | D10: 10 | E10: 53 | G10: 700 | H10: 2.84509804 | I10: 10 | J10: 53 | M10: Phase | N10: =28.622*LOG10(N8)^4 - 345.22*LOG10(N8)^3 + 1550.4*LOG10(N8)^2 - 3116.9*LOG10(N8) + 2446 -> 57.2544002
B11: 800 | C11: 2.903089987 | D11: 8.5 | E11: 51 | G11: 800 | H11: 2.903089987 | I11: 8.5 | J11: 51
B12: 900 | C12: 2.954242509 | D12: 7 | E12: 48 | G12: 900 | H12: 2.954242509 | I12: 7 | J12: 48
B13: 1000 | C13: 3 | D13: 5 | E13: 46 | G13: 1000 | H13: 3 | I13: 5 | J13: 46
B14: =B13+1000 -> 2000 | C14: 3.301029996 | D14: -5 | E14: 30 | G14: =G13+1000 -> 2000 | H14: 3.301029996 | I14: -5 | J14: 30
B15: =B14+1000 -> 3000 | C15: 3.477121255 | D15: -11 | E15: 25 | G15: =G14+1000 -> 3000 | H15: 3.477121255 | I15: -11 | J15: 25
B16: 4000 | C16: 3.602059991 | D16: -14.5 | E16: 20 | G16: 4000 | H16: 3.602059991 | I16: -14.5 | J16: 20
B17: 5000 | C17: 3.698970004 | D17: -17.5 | E17: 15 | G17: 5000 | H17: 3.698970004 | I17: -17.5 | J17: 15
